[Event "*** Titled Tuesday Blitz"]
[Site "Chess.com"]
[Date "2020.04.21"]
[Round "6"]
[White "kleinebeer98"]
[Black "Munkhzul_Turmunkh"]
[Result "1/2-1/2"]
[WhiteElo "2699"]
[BlackElo "2493"]
[TimeControl "180+1"]
[EndTime "11:10:37 PDT"]
[Termination "Game drawn by stalemate"]

1. e4 {[%clk 0:02:51.2]} 1... c5 {[%clk 0:02:59.7]} 2. b4 {[%clk 0:02:47.1]}
2... cxb4 {[%clk 0:02:56.4]} 3. a3 {[%clk 0:02:44.4]} 3... d5 {[%clk 0:02:37.2]}
4. exd5 {[%clk 0:02:45.3]} 4... Qxd5 {[%clk 0:02:37.2]} 5. Nf3 {[%clk
0:02:44.9]} 5... Nf6 {[%clk 0:02:34.7]} 6. axb4 {[%clk 0:02:44.2]} 6... Bg4
{[%clk 0:02:34.5]} 7. Nc3 {[%clk 0:02:42.7]} 7... Bxf3 {[%clk 0:02:30.7]} 8.
Nxd5 {[%clk 0:02:38.8]} 8... Bxd1 {[%clk 0:02:30]} 9. Nc7+ {[%clk 0:02:38.3]}
9... Kd8 {[%clk 0:02:29.2]} 10. Nxa8 {[%clk 0:02:39.2]} 10... Bxc2 {[%clk
0:02:26.2]} 11. Rxa7 {[%clk 0:02:37.5]} 11... Be4 {[%clk 0:02:23.7]} 12. f3
{[%clk 0:02:31.9]} 12... Bd5 {[%clk 0:02:22.3]} 13. Nb6 {[%clk 0:02:30.3]} 13...
Kc7 {[%clk 0:02:12.3]} 14. Nxd5+ {[%clk 0:02:29.3]} 14... Nxd5 {[%clk
0:02:13.2]} 15. b5 {[%clk 0:02:23.3]} 15... e6 {[%clk 0:02:10.4]} 16. Bb2 {[%clk
0:02:11]} 16... Bc5 {[%clk 0:02:09.4]} 17. Ra8 {[%clk 0:02:04.4]} 17... f6
{[%clk 0:02:08.5]} 18. Be2 {[%clk 0:01:58.3]} 18... Nb6 {[%clk 0:02:04.9]} 19.
Ra1 {[%clk 0:01:57.7]} 19... N8d7 {[%clk 0:02:03.4]} 20. d4 {[%clk 0:01:49]}
20... Bb4+ {[%clk 0:02:02.7]} 21. Kf2 {[%clk 0:01:49.2]} 21... Nd5 {[%clk
0:02:02.9]} 22. Rhc1+ {[%clk 0:01:46.3]} 22... Kb8 {[%clk 0:02:02.8]} 23. Bc4
{[%clk 0:01:41.4]} 23... N7b6 {[%clk 0:02:02.5]} 24. Bb3 {[%clk 0:01:39.6]}
24... Nf4 {[%clk 0:01:55.1]} 25. Rd1 {[%clk 0:01:39.3]} 25... Nfd5 {[%clk
0:01:53.8]} 26. Rac1 {[%clk 0:01:35.4]} 26... Rd8 {[%clk 0:01:50]} 27. g3 {[%clk
0:01:32.8]} 27... Rd7 {[%clk 0:01:44.1]} 28. Rd3 {[%clk 0:01:29.8]} 28... Rd8
{[%clk 0:01:40.4]} 29. Bd1 {[%clk 0:01:02.8]} 29... Rd7 {[%clk 0:01:34.5]} 30.
f4 {[%clk 0:00:56.3]} 30... Nc7 {[%clk 0:01:32.6]} 31. Bf3 {[%clk 0:00:53.2]}
31... Nbd5 {[%clk 0:01:31.5]} 32. Ba3 {[%clk 0:00:51.9]} 32... Bxa3 {[%clk
0:01:29.7]} 33. Rxa3 {[%clk 0:00:52.8]} 33... Nxb5 {[%clk 0:01:30.3]} 34. Rd3
{[%clk 0:00:45.3]} 34... Ndc7 {[%clk 0:01:10.6]} 35. Rb1 {[%clk 0:00:39.1]}
35... b6 {[%clk 0:01:03.8]} 36. Ra1 {[%clk 0:00:35.8]} 36... Nxd4 {[%clk
0:00:58.8]} 37. Rb1 {[%clk 0:00:29.2]} 37... b5 {[%clk 0:00:55.8]} 38. Bc6
{[%clk 0:00:29.4]} 38... Rd6 {[%clk 0:00:53.4]} 39. Bxb5 {[%clk 0:00:29.7]}
39... Ncxb5 {[%clk 0:00:53.4]} 40. Rxd4 {[%clk 0:00:26.6]} 40... Rxd4 {[%clk
0:00:54.3]} 41. Rxb5+ {[%clk 0:00:27]} 41... Kc7 {[%clk 0:00:54.5]} 42. Ke3
{[%clk 0:00:25.6]} 42... Ra4 {[%clk 0:00:54.5]} 43. Kf3 {[%clk 0:00:24.9]} 43...
Ra2 {[%clk 0:00:51.3]} 44. h3 {[%clk 0:00:24.3]} 44... Ra7 {[%clk 0:00:51.3]}
45. Rb3 {[%clk 0:00:20.1]} 45... Kd7 {[%clk 0:00:51.5]} 46. Rd3+ {[%clk
0:00:20.4]} 46... Ke7 {[%clk 0:00:51.9]} 47. Rb3 {[%clk 0:00:21.3]} 47... Kf7
{[%clk 0:00:51.6]} 48. Re3 {[%clk 0:00:21.1]} 48... f5 {[%clk 0:00:51.7]} 49.
Rb3 {[%clk 0:00:20.5]} 49... Kf6 {[%clk 0:00:52.1]} 50. g4 {[%clk 0:00:20.8]}
50... fxg4+ {[%clk 0:00:50.5]} 51. hxg4 {[%clk 0:00:21.7]} 51... h6 {[%clk
0:00:50.9]} 52. Re3 {[%clk 0:00:21.4]} 52... Ra5 {[%clk 0:00:50.3]} 53. Kg3
{[%clk 0:00:21.2]} 53... e5 {[%clk 0:00:49.3]} 54. fxe5+ {[%clk 0:00:20.8]}
54... Rxe5 {[%clk 0:00:50.2]} 55. Ra3 {[%clk 0:00:21.3]} 55... Kg5 {[%clk
0:00:50]} 56. Rf3 {[%clk 0:00:15.8]} 56... g6 {[%clk 0:00:48.9]} 57. Ra3 {[%clk
0:00:14.6]} 57... Rd5 {[%clk 0:00:48.9]} 58. Rb3 {[%clk 0:00:14.1]} 58... h5
{[%clk 0:00:47.5]} 59. gxh5 {[%clk 0:00:13.3]} 59... Kxh5 {[%clk 0:00:48.4]} 60.
Kh3 {[%clk 0:00:13.1]} 60... g5 {[%clk 0:00:48.3]} 61. Kg3 {[%clk 0:00:13.4]}
61... Rd4 {[%clk 0:00:48.6]} 62. Ra3 {[%clk 0:00:13.5]} 62... Rg4+ {[%clk
0:00:48.1]} 63. Kh3 {[%clk 0:00:13.9]} 63... Rh4+ {[%clk 0:00:48.4]} 64. Kg3
{[%clk 0:00:14.1]} 64... Rh1 {[%clk 0:00:48]} 65. Kg2 {[%clk 0:00:13.9]} 65...
Rc1 {[%clk 0:00:47.3]} 66. Kg3 {[%clk 0:00:13.7]} 66... Rc5 {[%clk 0:00:46.2]}
67. Kg2 {[%clk 0:00:13.8]} 67... Kh4 {[%clk 0:00:45.5]} 68. Rh3+ {[%clk
0:00:12.7]} 68... Kg4 {[%clk 0:00:45.5]} 69. Rg3+ {[%clk 0:00:13.6]} 69... Kf5
{[%clk 0:00:45.9]} 70. Ra3 {[%clk 0:00:14.5]} 70... Rc4 {[%clk 0:00:43.3]} 71.
Ra5+ {[%clk 0:00:12.8]} 71... Kg4 {[%clk 0:00:43]} 72. Ra3 {[%clk 0:00:13.1]}
72... Rc2+ {[%clk 0:00:42.9]} 73. Kg1 {[%clk 0:00:13.4]} 73... Kh4 {[%clk
0:00:43.2]} 74. Rb3 {[%clk 0:00:13.1]} 74... g4 {[%clk 0:00:43.4]} 75. Ra3
{[%clk 0:00:13.4]} 75... Rd2 {[%clk 0:00:43]} 76. Rb3 {[%clk 0:00:13.3]} 76...
Re2 {[%clk 0:00:39.7]} 77. Ra3 {[%clk 0:00:13.4]} 77... Re5 {[%clk 0:00:39.4]}
78. Rb3 {[%clk 0:00:13.1]} 78... Rf5 {[%clk 0:00:39.6]} 79. Ra3 {[%clk 0:00:13]}
79... Rf3 {[%clk 0:00:39.5]} 80. Rxf3 {[%clk 0:00:12.9]} 80... gxf3 {[%clk
0:00:40.4]} 81. Kf2 {[%clk 0:00:13]} 81... Kg4 {[%clk 0:00:41.1]} 82. Kf1 {[%clk
0:00:12.8]} 82... Kg3 {[%clk 0:00:41.6]} 83. Kg1 {[%clk 0:00:13]} 83... f2+
{[%clk 0:00:42.1]} 84. Kf1 {[%clk 0:00:13.2]} 84... Kf3 {[%clk 0:00:43]} 1/2-1/2

[Event "*** Titled Tuesday Blitz"]
[Site "Chess.com"]
[Date "2020.04.21"]
[Round "6"]
[White "fancyknightmaneuvers"]
[Black "gvanna"]
[Result "0-1"]
[WhiteElo "2593"]
[BlackElo "2474"]
[TimeControl "180+1"]
[EndTime "11:10:40 PDT"]
[Termination "gvanna won by resignation"]

1. e4 {[%clk 0:03:00]} 1... c5 {[%clk 0:03:00.1]} 2. Nf3 {[%clk 0:03:00.1]} 2...
Nc6 {[%clk 0:03:00.4]} 3. Bb5 {[%clk 0:02:59.8]} 3... g6 {[%clk 0:03:00.4]} 4.
O-O {[%clk 0:03:00.1]} 4... Bg7 {[%clk 0:03:00.2]} 5. c3 {[%clk 0:02:59.7]} 5...
Nf6 {[%clk 0:03:00.1]} 6. Re1 {[%clk 0:02:57.7]} 6... O-O {[%clk 0:02:59.7]} 7.
d4 {[%clk 0:02:56.7]} 7... cxd4 {[%clk 0:03:00]} 8. cxd4 {[%clk 0:02:57.6]} 8...
a6 {[%clk 0:03:00.3]} 9. Bf1 {[%clk 0:02:52.3]} 9... d5 {[%clk 0:03:00.2]} 10.
e5 {[%clk 0:02:51.4]} 10... Ne4 {[%clk 0:03:00.4]} 11. h3 {[%clk 0:02:50.5]}
11... f6 {[%clk 0:02:58.2]} 12. exf6 {[%clk 0:02:48.6]} 12... Bxf6 {[%clk
0:02:56.2]} 13. Nc3 {[%clk 0:02:49]} 13... Bf5 {[%clk 0:02:54]} 14. Bh6 {[%clk
0:02:48.2]} 14... Re8 {[%clk 0:02:45.5]} 15. Qb3 {[%clk 0:02:41.8]} 15... Nxc3
{[%clk 0:02:44.9]} 16. bxc3 {[%clk 0:02:39.3]} 16... Na5 {[%clk 0:02:44.9]} 17.
Qa3 {[%clk 0:02:30.7]} 17... Rc8 {[%clk 0:02:43.2]} 18. Ne5 {[%clk 0:02:25.3]}
18... Nc6 {[%clk 0:02:36.2]} 19. Nxc6 {[%clk 0:02:08.5]} 19... Rxc6 {[%clk
0:02:34.7]} 20. Rac1 {[%clk 0:02:08.9]} 20... Qc7 {[%clk 0:02:30.6]} 21. c4
{[%clk 0:02:01.7]} 21... dxc4 {[%clk 0:02:16.6]} 22. d5 {[%clk 0:01:57.5]} 22...
Rc5 {[%clk 0:02:07.4]} 23. d6 {[%clk 0:01:18]} 23... Qxd6 {[%clk 0:02:00.8]} 24.
Bxc4+ {[%clk 0:01:18.3]} 24... Kh8 {[%clk 0:01:56.7]} 25. Bf7 {[%clk 0:01:14.5]}
25... Rxc1 {[%clk 0:01:43.3]} 26. Qxc1 {[%clk 0:01:09.2]} 26... Rc8 {[%clk
0:01:41.4]} 27. Qe3 {[%clk 0:01:09.6]} 27... Rc2 {[%clk 0:01:09.6]} 28. Qa7
{[%clk 0:00:45.4]} 28... Qc5 {[%clk 0:00:44.9]} 29. Qa8+ {[%clk 0:00:31.3]}
29... Qc8 {[%clk 0:00:44.8]} 30. Qxc8+ {[%clk 0:00:27.1]} 30... Rxc8 {[%clk
0:00:44]} 31. Bd5 {[%clk 0:00:27.4]} 31... Rc7 {[%clk 0:00:38.8]} 32. Bf4 {[%clk
0:00:26]} 32... Rd7 {[%clk 0:00:38]} 33. Bb3 {[%clk 0:00:23.7]} 33... Kg7 {[%clk
0:00:36.5]} 34. Rc1 {[%clk 0:00:22]} 34... Be4 {[%clk 0:00:32.3]} 35. Be3 {[%clk
0:00:21.6]} 35... Bc6 {[%clk 0:00:31.8]} 36. Be6 {[%clk 0:00:21.4]} 36... Rd6
{[%clk 0:00:31.5]} 37. Bb3 {[%clk 0:00:21.9]} 37... Bd4 {[%clk 0:00:30.8]} 38.
Bf4 {[%clk 0:00:21.1]} 38... e5 {[%clk 0:00:31.1]} 39. Bg3 {[%clk 0:00:21.4]}
39... Rf6 {[%clk 0:00:29.1]} 40. Re1 {[%clk 0:00:21.1]} 40... Rf5 {[%clk
0:00:27.1]} 41. Be6 {[%clk 0:00:19.8]} 41... Rg5 {[%clk 0:00:27.1]} 42. Kh2
{[%clk 0:00:18.1]} 42... Bxf2 {[%clk 0:00:27.4]} 43. Bxe5+ {[%clk 0:00:13.3]}
43... Kh6 {[%clk 0:00:23.3]} 44. Bf4 {[%clk 0:00:12.4]} 44... Bxe1 {[%clk
0:00:22.8]} 45. g3 {[%clk 0:00:12.8]} 45... Bxg3+ {[%clk 0:00:20.1]} 46. Bxg3
{[%clk 0:00:12.3]} 46... Kg7 {[%clk 0:00:19.5]} 47. Bf4 {[%clk 0:00:10.9]} 47...
Ra5 {[%clk 0:00:18.6]} 48. Bb3 {[%clk 0:00:10.3]} 48... Rc5 {[%clk 0:00:17.1]}
49. Kg3 {[%clk 0:00:10.2]} 49... h6 {[%clk 0:00:16.5]} 50. Bd6 {[%clk
0:00:09.6]} 50... Rg5+ {[%clk 0:00:15.8]} 51. Kf4 {[%clk 0:00:09.6]} 51... Rf5+
{[%clk 0:00:14.9]} 52. Kg4 {[%clk 0:00:09.9]} 52... Bd7 {[%clk 0:00:13.2]} 53.
Kg3 {[%clk 0:00:09.6]} 53... Rh5 {[%clk 0:00:12.9]} 54. h4 {[%clk 0:00:09.9]}
54... Rf5 {[%clk 0:00:12.6]} 55. Bc2 {[%clk 0:00:09]} 55... Rd5 {[%clk
0:00:11.2]} 56. Bf4 {[%clk 0:00:08.5]} 56... Bf5 {[%clk 0:00:11]} 57. Bb3 {[%clk
0:00:08.7]} 57... Rd3+ {[%clk 0:00:11]} 58. Kf2 {[%clk 0:00:09.2]} 58... b5
{[%clk 0:00:10.3]} 59. Be5+ {[%clk 0:00:09.7]} 59... Kh7 {[%clk 0:00:09.4]} 60.
Bf6 {[%clk 0:00:08.5]} 60... Rh3 {[%clk 0:00:09.1]} 61. Kg2 {[%clk 0:00:08.6]}
61... Re3 {[%clk 0:00:09.2]} 62. Bd4 {[%clk 0:00:08.6]} 62... Re8 {[%clk
0:00:09.1]} 63. Bf6 {[%clk 0:00:08.7]} 63... Be6 {[%clk 0:00:09.3]} 64. Bc2
{[%clk 0:00:07.9]} 64... Bxa2 {[%clk 0:00:09.5]} 65. Kf3 {[%clk 0:00:08.4]}
65... Bc4 {[%clk 0:00:09.5]} 66. h5 {[%clk 0:00:07.5]} 66... Bf7 {[%clk
0:00:09.3]} 67. Kf4 {[%clk 0:00:07.2]} 67... Re6 {[%clk 0:00:08.9]} 68. Bd4
{[%clk 0:00:07.1]} 68... Rc6 {[%clk 0:00:09.1]} 69. Be4 {[%clk 0:00:07]} 69...
Rc4 {[%clk 0:00:08.9]} 70. Be5 {[%clk 0:00:07.2]} 70... a5 {[%clk 0:00:09.1]}
71. Ke3 {[%clk 0:00:06.5]} 71... a4 {[%clk 0:00:09.2]} 72. Bd3 {[%clk 0:00:07]}
72... Rc5 {[%clk 0:00:08.9]} 73. Bd4 {[%clk 0:00:07.1]} 73... Rxh5 {[%clk
0:00:08.7]} 74. Be4 {[%clk 0:00:07.1]} 74... a3 {[%clk 0:00:08.9]} 75. Kf4
{[%clk 0:00:07.3]} 75... Rh4+ {[%clk 0:00:09.1]} 76. Ke5 {[%clk 0:00:07.4]}
76... a2 {[%clk 0:00:08.9]} 77. Bc6 {[%clk 0:00:06.7]} 77... Rxd4 {[%clk
0:00:08.7]} 0-1

[Event "*** Titled Tuesday Blitz"]
[Site "Chess.com"]
[Date "2020.04.21"]
[Round "6"]
[White "silverback96"]
[Black "chenrip"]
[Result "0-1"]
[WhiteElo "2177"]
[BlackElo "2366"]
[TimeControl "180+1"]
[EndTime "11:10:49 PDT"]
[Termination "chenrip won by resignation"]

1. d4 {[%clk 0:03:00.9]} 1... Nf6 {[%clk 0:02:58.4]} 2. c4 {[%clk 0:02:59.2]}
2... d6 {[%clk 0:02:58.8]} 3. Nf3 {[%clk 0:02:58.9]} 3... g6 {[%clk 0:02:59.2]}
4. g3 {[%clk 0:02:59.1]} 4... Bg7 {[%clk 0:02:59.5]} 5. Bg2 {[%clk 0:03:00]}
5... O-O {[%clk 0:02:59.7]} 6. Nc3 {[%clk 0:03:00.1]} 6... Nbd7 {[%clk
0:02:58.8]} 7. O-O {[%clk 0:03:00.4]} 7... e5 {[%clk 0:02:58.9]} 8. e4 {[%clk
0:03:00.7]} 8... c6 {[%clk 0:02:56.1]} 9. h3 {[%clk 0:02:58.3]} 9... h6 {[%clk
0:02:51]} 10. Be3 {[%clk 0:02:56.6]} 10... Qc7 {[%clk 0:02:50.1]} 11. Qc2 {[%clk
0:02:56.1]} 11... a6 {[%clk 0:02:50.1]} 12. Rad1 {[%clk 0:02:54.1]} 12... Kh7
{[%clk 0:02:48.8]} 13. Rfe1 {[%clk 0:02:51.6]} 13... Re8 {[%clk 0:02:45.9]} 14.
b4 {[%clk 0:02:42.7]} 14... Nf8 {[%clk 0:02:39]} 15. a4 {[%clk 0:02:40.8]} 15...
Be6 {[%clk 0:02:37.6]} 16. d5 {[%clk 0:02:40.9]} 16... cxd5 {[%clk 0:02:34.4]}
17. cxd5 {[%clk 0:02:32.7]} 17... Bd7 {[%clk 0:02:34.4]} 18. Qb3 {[%clk
0:02:25.6]} 18... b5 {[%clk 0:02:32.3]} 19. a5 {[%clk 0:02:22.3]} 19... Rec8
{[%clk 0:02:18.2]} 20. Rc1 {[%clk 0:02:20.7]} 20... Qc4 {[%clk 0:02:18]} 21. Qb1
{[%clk 0:02:12.2]} 21... Qc7 {[%clk 0:01:49.7]} 22. Re2 {[%clk 0:01:58.1]} 22...
Qb7 {[%clk 0:01:47.6]} 23. Rec2 {[%clk 0:01:56.6]} 23... Be8 {[%clk 0:01:36.8]}
24. Nd2 {[%clk 0:01:45.7]} 24... g5 {[%clk 0:01:29.6]} 25. Nb3 {[%clk
0:01:40.8]} 25... Ng6 {[%clk 0:01:26.9]} 26. Ne2 {[%clk 0:01:18.7]} 26... Bd7
{[%clk 0:01:25.5]} 27. Rxc8 {[%clk 0:01:16.9]} 27... Rxc8 {[%clk 0:01:25.2]} 28.
Rc2 {[%clk 0:01:17.3]} 28... Ne8 {[%clk 0:01:13.9]} 29. Qc1 {[%clk 0:01:17]}
29... f5 {[%clk 0:01:12.3]} 30. Rxc8 {[%clk 0:01:15.2]} 30... Bxc8 {[%clk
0:01:11.3]} 31. Bb6 {[%clk 0:00:54.2]} 31... f4 {[%clk 0:01:06.5]} 32. Qc6
{[%clk 0:00:36.2]} 32... Qd7 {[%clk 0:00:50]} 33. Nc3 {[%clk 0:00:35.6]} 33...
Ne7 {[%clk 0:00:44.4]} 34. Qxd7 {[%clk 0:00:25.5]} 34... Bxd7 {[%clk 0:00:44.8]}
35. Bf1 {[%clk 0:00:25.2]} 35... Nc8 {[%clk 0:00:43.7]} 36. Bd8 {[%clk 0:00:24]}
36... Kg6 {[%clk 0:00:38.6]} 37. Bb6 {[%clk 0:00:18]} 37... Kf7 {[%clk
0:00:38.3]} 38. gxf4 {[%clk 0:00:18.2]} 38... gxf4 {[%clk 0:00:38.2]} 39. f3
{[%clk 0:00:18.5]} 39... Bf6 {[%clk 0:00:38]} 40. Kf2 {[%clk 0:00:18.6]} 40...
Bh4+ {[%clk 0:00:37.9]} 41. Ke2 {[%clk 0:00:19]} 41... Ke7 {[%clk 0:00:35.6]}
42. Kd2 {[%clk 0:00:19.2]} 42... h5 {[%clk 0:00:33.7]} 43. Be2 {[%clk
0:00:18.6]} 43... Bxh3 {[%clk 0:00:32.1]} 44. Nxb5 {[%clk 0:00:15.2]} 44... axb5
{[%clk 0:00:29.1]} 45. Bxb5 {[%clk 0:00:16.1]} 45... Bd7 {[%clk 0:00:28.1]} 46.
Bc6 {[%clk 0:00:15.4]} 46... Bg3 {[%clk 0:00:24.4]} 47. Bg1 {[%clk 0:00:15]}
47... h4 {[%clk 0:00:24.1]} 48. b5 {[%clk 0:00:14.8]} 48... h3 {[%clk 0:00:24]}
49. b6 {[%clk 0:00:14.8]} 49... Nxb6 {[%clk 0:00:22.7]} 50. axb6 {[%clk
0:00:14.6]} 50... Bc8 {[%clk 0:00:20.5]} 51. b7 {[%clk 0:00:14.1]} 51... Bxb7
{[%clk 0:00:21]} 52. Bxb7 {[%clk 0:00:15]} 52... h2 {[%clk 0:00:21.4]} 53. Bxh2
{[%clk 0:00:15.5]} 53... Bxh2 {[%clk 0:00:22.3]} 54. Na5 {[%clk 0:00:15.9]}
54... Bg1 {[%clk 0:00:20.6]} 55. Nc6+ {[%clk 0:00:16.8]} 55... Kd7 {[%clk
0:00:20.3]} 56. Ba6 {[%clk 0:00:17.1]} 56... Nc7 {[%clk 0:00:20]} 57. Bf1 {[%clk
0:00:18]} 57... Ne8 {[%clk 0:00:17.5]} 58. Bh3+ {[%clk 0:00:18.9]} 58... Kc7
{[%clk 0:00:18.1]} 59. Ke1 {[%clk 0:00:16.6]} 59... Nf6 {[%clk 0:00:18.2]} 60.
Kf1 {[%clk 0:00:16.2]} 60... Be3 {[%clk 0:00:18.2]} 61. Kg2 {[%clk 0:00:16.4]}
61... Kb6 {[%clk 0:00:18.4]} 62. Be6 {[%clk 0:00:15.7]} 62... Kc5 {[%clk
0:00:18.7]} 63. Kh3 {[%clk 0:00:15.7]} 63... Bc1 {[%clk 0:00:17]} 64. Kh4 {[%clk
0:00:15.9]} 64... Ba3 {[%clk 0:00:16.8]} 65. Kg5 {[%clk 0:00:16]} 65... Ne8
{[%clk 0:00:17]} 66. Kg6 {[%clk 0:00:15.9]} 66... Nc7 {[%clk 0:00:17.3]} 67. Kf7
{[%clk 0:00:16.1]} 67... Kc4 {[%clk 0:00:17]} 68. Ke7 {[%clk 0:00:16]} 68... Kd3
{[%clk 0:00:16.4]} 69. Kd7 {[%clk 0:00:14.3]} 69... Nb5 {[%clk 0:00:16.4]} 70.
Bg4 {[%clk 0:00:14.1]} 70... Ke2 {[%clk 0:00:16.4]} 71. Nd8 {[%clk 0:00:12.8]}
71... Nd4 {[%clk 0:00:16.3]} 72. Nf7 {[%clk 0:00:12.7]} 72... Nxf3 {[%clk
0:00:15.6]} 73. Nxd6 {[%clk 0:00:13]} 73... Ke3 {[%clk 0:00:15.3]} 74. Bxf3
{[%clk 0:00:12.1]} 74... Kxf3 {[%clk 0:00:15.2]} 75. Nc4 {[%clk 0:00:11.2]}
75... Kxe4 {[%clk 0:00:14.9]} 76. Nxa3 {[%clk 0:00:11]} 76... Kxd5 {[%clk
0:00:15.1]} 77. Nc2 {[%clk 0:00:11.2]} 77... e4 {[%clk 0:00:14.6]} 78. Ke7
{[%clk 0:00:10.9]} 78... f3 {[%clk 0:00:13.5]} 79. Kf6 {[%clk 0:00:09.7]} 79...
f2 {[%clk 0:00:13.9]} 80. Ne3+ {[%clk 0:00:09.5]} 80... Kd4 {[%clk 0:00:14.4]}
81. Nf1 {[%clk 0:00:10.4]} 81... e3 {[%clk 0:00:14.8]} 82. Kf5 {[%clk
0:00:09.9]} 82... e2 {[%clk 0:00:15.1]} 83. Nd2 {[%clk 0:00:09.5]} 83... f1=Q+
{[%clk 0:00:13.7]} 0-1

[Event "*** Titled Tuesday Blitz"]
[Site "Chess.com"]
[Date "2020.04.21"]
[Round "6"]
[White "MFguimaraes"]
[Black "archess2"]
[Result "1-0"]
[WhiteElo "2412"]
[BlackElo "2220"]
[TimeControl "180+1"]
[EndTime "11:10:52 PDT"]
[Termination "MFguimaraes won by checkmate"]

1. e4 {[%clk 0:03:00.9]} 1... c6 {[%clk 0:02:59.3]} 2. d4 {[%clk 0:02:59.9]}
2... d5 {[%clk 0:02:59.6]} 3. Nd2 {[%clk 0:02:59.9]} 3... dxe4 {[%clk
0:02:59.8]} 4. Nxe4 {[%clk 0:03:00.8]} 4... Bf5 {[%clk 0:03:00.1]} 5. Qf3 {[%clk
0:03:01.3]} 5... e6 {[%clk 0:02:54]} 6. Ne2 {[%clk 0:03:00.5]} 6... Nf6 {[%clk
0:02:50.1]} 7. Nxf6+ {[%clk 0:02:52.5]} 7... Qxf6 {[%clk 0:02:49.7]} 8. Qb3
{[%clk 0:02:45.3]} 8... b6 {[%clk 0:02:47.8]} 9. Ng3 {[%clk 0:02:39.6]} 9... Bg6
{[%clk 0:02:43.8]} 10. Be3 {[%clk 0:02:32.7]} 10... Bd6 {[%clk 0:02:38.7]} 11.
Bd3 {[%clk 0:02:27.7]} 11... O-O {[%clk 0:02:27.9]} 12. Ne4 {[%clk 0:02:24.3]}
12... Qe7 {[%clk 0:02:20.9]} 13. Nxd6 {[%clk 0:02:17.9]} 13... Qxd6 {[%clk
0:02:21.8]} 14. Be2 {[%clk 0:02:08.2]} 14... Nd7 {[%clk 0:02:14]} 15. Bf3 {[%clk
0:02:06.9]} 15... e5 {[%clk 0:02:10.3]} 16. Rd1 {[%clk 0:02:04]} 16... Qf6
{[%clk 0:01:51]} 17. O-O {[%clk 0:01:49.1]} 17... e4 {[%clk 0:01:49.8]} 18. Be2
{[%clk 0:01:49.1]} 18... Qe7 {[%clk 0:01:45.6]} 19. f3 {[%clk 0:01:45.2]} 19...
a5 {[%clk 0:01:42.7]} 20. a4 {[%clk 0:01:44.2]} 20... Nf6 {[%clk 0:01:39.4]} 21.
fxe4 {[%clk 0:01:35.7]} 21... Bxe4 {[%clk 0:01:38.3]} 22. Bg5 {[%clk 0:01:33.1]}
22... Bd5 {[%clk 0:01:33.1]} 23. Bxf6 {[%clk 0:01:28.2]} 23... Qxe2 {[%clk
0:01:21.8]} 24. Qg3 {[%clk 0:01:24.6]} 24... g6 {[%clk 0:01:21.5]} 25. Rde1
{[%clk 0:01:09.8]} 25... Qd2 {[%clk 0:01:17]} 26. c4 {[%clk 0:00:51.9]} 26...
Bxc4 {[%clk 0:01:11.6]} 27. Rf4 {[%clk 0:00:39.6]} 27... Rfe8 {[%clk 0:01:07.4]}
28. Be5 {[%clk 0:00:27.8]} 28... Bd5 {[%clk 0:01:02.1]} 29. Ref1 {[%clk
0:00:26.9]} 29... b5 {[%clk 0:00:51.2]} 30. h4 {[%clk 0:00:26.5]} 30... bxa4
{[%clk 0:00:46.8]} 31. h5 {[%clk 0:00:26.8]} 31... Ra7 {[%clk 0:00:36.4]} 32.
Rf6 {[%clk 0:00:20.7]} 32... Be4 {[%clk 0:00:33.2]} 33. Kh2 {[%clk 0:00:20]}
33... Qd3 {[%clk 0:00:29.2]} 34. Qg5 {[%clk 0:00:19.1]} 34... Qe2 {[%clk
0:00:27]} 35. R1f4 {[%clk 0:00:19]} 35... Qxh5+ {[%clk 0:00:26.1]} 36. Qxh5
{[%clk 0:00:19.3]} 36... gxh5 {[%clk 0:00:26.3]} 37. Rxe4 {[%clk 0:00:19.9]}
37... Rb7 {[%clk 0:00:25.1]} 38. Re3 {[%clk 0:00:20.4]} 38... Rd8 {[%clk
0:00:24]} 39. Rg3+ {[%clk 0:00:20.8]} 39... Kf8 {[%clk 0:00:24.3]} 40. Bd6+
{[%clk 0:00:21.3]} 40... Ke8 {[%clk 0:00:23.5]} 41. Rg8+ {[%clk 0:00:21.8]}
41... Kd7 {[%clk 0:00:23.8]} 42. Rxf7+ {[%clk 0:00:21.5]} 42... Ke6 {[%clk
0:00:24]} 43. Rxb7 {[%clk 0:00:16.4]} 43... Rxg8 {[%clk 0:00:23.4]} 44. Be5
{[%clk 0:00:16.7]} 44... Kd5 {[%clk 0:00:21.5]} 45. Ra7 {[%clk 0:00:16.6]} 45...
Kc4 {[%clk 0:00:20.3]} 46. Rxa5 {[%clk 0:00:16.7]} 46... Kb4 {[%clk 0:00:21.2]}
47. Ra6 {[%clk 0:00:16.2]} 47... Rf8 {[%clk 0:00:21.8]} 48. Rxc6 {[%clk
0:00:15.8]} 48... Rf2 {[%clk 0:00:22.5]} 49. Rb6+ {[%clk 0:00:16]} 49... Kc4
{[%clk 0:00:22.4]} 50. Rb7 {[%clk 0:00:15.8]} 50... h6 {[%clk 0:00:22.1]} 51.
Kh3 {[%clk 0:00:15.8]} 51... Kd5 {[%clk 0:00:21.5]} 52. Rb5+ {[%clk 0:00:15.7]}
52... Kc4 {[%clk 0:00:21.3]} 53. Rb6 {[%clk 0:00:16.1]} 53... Kd5 {[%clk
0:00:21.3]} 54. Rb4 {[%clk 0:00:15.8]} 54... Ke4 {[%clk 0:00:20.4]} 55. Rxa4
{[%clk 0:00:15.7]} 55... Rxb2 {[%clk 0:00:20.5]} 56. Ra6 {[%clk 0:00:15.3]}
56... Rb3+ {[%clk 0:00:20.8]} 57. Kh2 {[%clk 0:00:14.8]} 57... Rb2 {[%clk
0:00:21.7]} 58. Rxh6 {[%clk 0:00:14.9]} 58... Kf5 {[%clk 0:00:21.9]} 59. Rxh5+
{[%clk 0:00:15.2]} 59... Kg4 {[%clk 0:00:22.8]} 60. Rh3 {[%clk 0:00:15.9]} 60...
Re2 {[%clk 0:00:22.2]} 61. Rg3+ {[%clk 0:00:16]} 61... Kh4 {[%clk 0:00:22.7]}
62. Rf3 {[%clk 0:00:16.5]} 62... Kg4 {[%clk 0:00:23]} 63. Rf8 {[%clk 0:00:16.4]}
63... Rd2 {[%clk 0:00:22.3]} 64. Rf4+ {[%clk 0:00:14.7]} 64... Kg5 {[%clk
0:00:22.5]} 65. Kh3 {[%clk 0:00:15]} 65... Rd3+ {[%clk 0:00:22.4]} 66. g3 {[%clk
0:00:15.5]} 66... Rd1 {[%clk 0:00:22.3]} 67. Bf6+ {[%clk 0:00:15.3]} 67... Kg6
{[%clk 0:00:22.1]} 68. Kg4 {[%clk 0:00:14.8]} 68... Ra1 {[%clk 0:00:21]} 69. Bh4
{[%clk 0:00:14.8]} 69... Ra6 {[%clk 0:00:20.7]} 70. d5 {[%clk 0:00:14.4]} 70...
Ra5 {[%clk 0:00:20.4]} 71. Rf6+ {[%clk 0:00:14]} 71... Kg7 {[%clk 0:00:20.3]}
72. d6 {[%clk 0:00:14.9]} 72... Rd5 {[%clk 0:00:20.4]} 73. Bg5 {[%clk
0:00:14.4]} 73... Rd4+ {[%clk 0:00:20.2]} 74. Kh5 {[%clk 0:00:14.6]} 74... Rd5
{[%clk 0:00:20.4]} 75. g4 {[%clk 0:00:14.3]} 75... Rd1 {[%clk 0:00:20.6]} 76.
Re6 {[%clk 0:00:12.8]} 76... Rh1+ {[%clk 0:00:20.6]} 77. Bh4 {[%clk 0:00:13.3]}
77... Rd1 {[%clk 0:00:21.2]} 78. Re7+ {[%clk 0:00:12.5]} 78... Kf8 {[%clk
0:00:21.5]} 79. d7 {[%clk 0:00:11.4]} 79... Rd5+ {[%clk 0:00:21.3]} 80. Kg6
{[%clk 0:00:11.4]} 80... Rd6+ {[%clk 0:00:21.7]} 81. Bf6 {[%clk 0:00:11.8]}
81... Kg8 {[%clk 0:00:19.8]} 82. Re8# {[%clk 0:00:11.8]} 1-0